bitfinex-derivatives/quotes_BTCF0:USTF0_20250320
["timestamp","ask_amount","ask_price","bid_price","bid_amount"]
[1742466032816,0.0368,85097.0,85096.0,0.0424]
[1742466033211,0.4625811,85097.0,85096.0,0.0424]
[1742466033416,0.2768,85097.0,85096.0,0.0424]
[1742466033621,0.2473,85097.0,85093.0,4e-05]
[1742466033823,0.4608,85094.0,85080.0,0.00017637]
[1742466034029,0.3608,85081.0,85080.0,0.00017637]
[1742466034219,0.3608,85081.0,85080.0,0.16028097]
[1742466034220,0.3631,85081.0,85080.0,0.16028097]
[1742466034527,0.4698,85081.0,85080.0,0.20308097]
[1742466035028,0.0123,85081.0,85080.0,0.20308097]
[1742466035228,0.0173,85081.0,85080.0,0.20408097]
[1742466035523,0.115,85081.0,85080.0,0.20408097]
[1742466035825,0.105,85081.0,85080.0,0.20408097]
[1742466036123,0.125,85081.0,85080.0,0.00117637]
[1742466036518,0.0273,85081.0,85080.0,0.00117637]
[1742466036720,0.0273,85081.0,85080.0,0.11878097]
[1742466037118,0.125,85081.0,85080.0,0.00117637]
[1742466037525,0.2426032,85081.0,85080.0,0.00117637]
[1742466038122,0.1,85045.0,85043.0,0.4138]
[1742466038330,0.4608,85044.0,85043.0,0.1176547]
[1742466038530,0.3631,85044.0,85039.0,0.0588359]
[1742466038716,0.7308,85044.0,85038.0,0.0443]
[1742466038920,0.1,85043.0,85042.0,0.3176689]
[1742466039430,0.0011,85043.0,85042.0,0.3176689]
[1742466039619,0.1,85043.0,85042.0,0.4031689]
[1742466039930,0.4476675,85043.0,85042.0,0.2]
[1742466040117,0.3723,85043.0,85042.0,0.2]
[1742466040518,0.4176,85043.0,85042.0,0.2855]
[1742466041024,0.4176,85043.0,85038.0,4e-05]
[1742466041025,0.1176786,85035.0,85034.0,0.00017638]
[1742466041228,0.217691,85026.0,85024.0,0.0429]
[1742466041417,0.7008,85026.0,85005.0,0.0588594]
[1742466041623,0.3608,85018.0,85005.0,0.00899603]
[1742466041823,0.3608,85006.0,85004.0,0.05733637]
[1742466042029,0.1,85006.0,85005.0,0.1177201]
[1742466042223,0.1,85006.0,85004.0,0.044]
[1742466042424,0.1,85006.0,84978.0,0.044]
[1742466042425,0.53072,85005.0,84978.0,0.044]
[1742466042631,0.4196726,84987.0,84979.0,0.046]
[1742466042927,0.5785547,84980.0,84979.0,0.046]
[1742466043130,0.1177603,84976.0,84960.0,0.07161576]
[1742466043334,0.1,84961.0,84960.0,0.0588911]
[1742466043519,0.3608,84969.0,84959.0,0.044]
[1742466043833,0.1,84969.0,84968.0,0.1177714]
[1742466044018,0.38,84969.0,84959.0,0.044]
[1742466044217,0.0275,84960.0,84959.0,0.044]
[1742466044421,0.1,84967.0,84960.0,0.058891]
[1742466044633,0.1,84962.0,84961.0,0.1623811]
[1742466045323,0.5608,84962.0,84961.0,0.1623811]
[1742466045829,0.4143,84962.0,84961.0,0.1623811]
[1742466046036,0.0394,84962.0,84961.0,0.1623811]
[1742466046332,0.10017649,84977.0,84976.0,0.1177603]
[1742466046525,0.36017649,84977.0,84976.0,0.1177603]
[1742466046927,0.36017649,84977.0,84975.0,0.0923]
[1742466047125,0.1177603,84976.0,84975.0,0.0923]
[1742466047334,0.24,84976.0,84975.0,0.0923]
[1742466047630,0.6008,84976.0,84957.0,4e-05]
[1742466047935,0.117766,84972.0,84963.0,0.1177783]
[1742466048131,0.4608,84964.0,84963.0,0.1177783]
[1742466048437,0.7508,84964.0,84953.0,4e-05]
[1742466048625,0.1177908,84954.0,84953.0,4e-05]
[1742466048829,1.14178,84954.0,84924.0,0.3608]
[1742466049131,1.14178,84954.0,84890.0,0.6484]
[1742466049132,0.0463,84953.0,84941.0,0.3608]
[1742466049330,0.3037,84953.0,84952.0,0.1177935]
[1742466049531,0.00096001,84963.0,84962.0,0.1177797]
[1742466049736,0.3658,84976.0,84975.0,0.1177616]
[1742466049927,0.85448,84986.0,84985.0,0.1177478]
[1742466050127,0.3608,84994.0,84993.0,0.1177367]
[1742466050328,0.4208,84994.0,84993.0,0.1177367]
[1742466050530,0.6108,84994.0,84973.0,0.0006]
[1742466050728,0.6108,84994.0,84970.0,0.173]
[1742466050729,0.3608,84984.0,84978.0,0.0451]
[1742466050930,0.64413719,84984.0,84978.0,0.0451]
[1742466051133,0.64413719,84984.0,84982.0,0.1177519]
[1742466051326,0.64413719,84984.0,84983.0,0.1636506]
[1742466051531,0.72823719,84984.0,84983.0,0.2087506]
[1742466051737,0.7236,84984.0,84983.0,0.2087506]
[1742466052242,0.68323719,84984.0,84983.0,0.2087506]
[1742466052432,0.73323719,84984.0,84983.0,0.091]
[1742466052632,0.0588811,84983.0,84975.0,0.00017649]
[1742466052837,0.4785719,84976.0,84975.0,0.00017649]
[1742466053040,0.80600909,84976.0,84975.0,0.00017649]
[1742466053237,0.80600909,84976.0,84969.0,4e-05]
[1742466053238,0.90606,84976.0,84969.0,4e-05]
[1742466053435,0.0588948,84964.0,84958.0,0.01314002]
[1742466053628,0.1178053,84952.0,84951.0,0.0482]
[1742466053938,0.1178086,84950.0,84939.0,0.0449]
[1742466054147,0.0457,84949.0,84944.0,4e-05]
[1742466054342,0.3608,84945.0,84944.0,0.1178564]
[1742466054527,0.7326,84945.0,84944.0,0.1178564]
[1742466054733,0.75823719,84945.0,84944.0,0.1178564]
[1742466054929,0.51823719,84945.0,84944.0,0.1178564]
[1742466055134,0.46823719,84945.0,84944.0,0.1178564]
[1742466055340,0.12743719,84945.0,84944.0,0.1178564]
[1742466055636,0.10743719,84945.0,84944.0,0.1178564]
[1742466055837,0.00017649,84955.0,84951.0,0.1178067]
[1742466056043,0.90468,84967.0,84966.0,0.1177859]
[1742466056245,0.07,84967.0,84966.0,0.1177859]
[1742466056434,0.02,84967.0,84966.0,0.1177859]
[1742466057640,0.07,84967.0,84943.0,0.0006]
[1742466057840,0.2177914,84962.0,84961.0,4e-05]
[1742466058038,0.1178136,84946.0,84944.0,4e-05]
[1742466058242,0.5486136,84946.0,84944.0,4e-05]
[1742466058446,0.9094136,84946.0,84944.0,4e-05]
[1742466058634,0.9094136,84946.0,84937.0,4e-05]
[1742466058635,0.0589075,84945.0,84937.0,4e-05]
[1742466058840,0.3608,84938.0,84937.0,4e-05]
[1742466059141,0.4608,84938.0,84937.0,0.2131661]
[1742466059540,0.4608,84938.0,84937.0,0.09534]
[1742466059734,0.6286247,84938.0,84937.0,0.09534]
[1742466059945,0.6286247,84938.0,84937.0,0.0953]
[1742466060143,0.5108,84938.0,84937.0,0.2131261]
[1742466060835,0.4608,84938.0,84937.0,0.2131261]
[1742466061237,0.4608,84938.0,84937.0,0.0953]
[1742466061444,0.4648,84938.0,84937.0,0.2131261]
[1742466062843,0.3608,84970.0,84937.0,0.5253]
[1742466063047,0.3808,84970.0,84969.0,0.1177817]
[1742466063241,0.3808,84970.0,84957.0,0.0588988]
[1742466063434,0.143,84969.0,84967.0,0.0439]
[1742466063642,0.3608,84968.0,84930.0,4e-05]
[1742466063951,0.3608,84968.0,84862.0,0.22455566]
[1742466063952,0.4083,84897.0,84862.0,0.22455566]
[1742466064250,0.4083,84897.0,84824.0,0.3608]
[1742466064251,0.3608,84863.0,84824.0,0.3608]
[1742466064547,0.0589751,84848.0,84816.0,0.85508]
[1742466064749,0.0789754,84848.0,84834.0,0.28327628]
[1742466065048,0.3908,84861.0,84847.0,0.3608]
[1742466065346,0.3608,84892.0,84860.0,0.3608]
[1742466065547,0.3608,84882.0,84861.0,0.33878]
[1742466065742,0.05,84877.0,84862.0,0.1179294]
[1742466065947,0.05,84877.0,84867.0,0.1179222]
[1742466066147,0.0589424,84895.0,84868.0,0.0437]
[1742466066351,0.01,84895.0,84894.0,0.3608]
[1742466066539,0.01,84895.0,84894.0,0.3708]
[1742466066736,0.12662474,84910.0,84894.0,0.3708]
[1742466067036,0.3608,84921.0,84920.0,0.1178384]
[1742466067243,0.7286375,84921.0,84913.0,0.3608]
[1742466067437,0.6108,84921.0,84914.0,0.0437]
[1742466067644,0.1178449,84915.0,84914.0,0.0437]
[1742466067838,0.8508,84915.0,84880.0,0.1178923]
[1742466068050,0.8508,84915.0,84879.0,0.058947]
[1742466068051,0.1178907,84882.0,84881.0,0.0437]
[1742466068347,0.4108,84883.0,84881.0,0.0437]
[1742466068649,0.3608,84894.0,84893.0,0.1178754]
[1742466068848,0.3608,84904.0,84903.0,0.1178615]
[1742466069049,0.00013671,84902.0,84901.0,0.1178643]
[1742466069253,0.3608,84906.0,84900.0,0.0454]
[1742466069450,0.02,84919.0,84918.0,0.1178407]
[1742466069754,0.02,84919.0,84905.0,0.3608]
[1742466069953,0.1178643,84901.0,84900.0,0.0483]
[1742466070150,0.28,84901.0,84890.0,0.18556]
[1742466070352,0.28,84901.0,84898.0,0.0589339]
[1742466070553,0.28,84901.0,84892.0,0.00017672]
[1742466070554,0.3608,84900.0,84892.0,0.00017672]
[1742466070850,0.3608,84893.0,84892.0,0.00017672]
[1742466071051,0.6108,84893.0,84892.0,0.00017672]
[1742466071252,0.7286754,84893.0,84892.0,0.00017672]
[1742466071550,0.7786754,84893.0,84892.0,0.00017672]
[1742466071753,0.117899,84876.0,84875.0,0.0483]
[1742466071960,0.728699,84876.0,84875.0,0.01339992]
[1742466072148,0.3608,84876.0,84874.0,4e-05]
[1742466072347,0.1179004,84875.0,84874.0,4e-05]
[1742466072549,0.6171804,84875.0,84874.0,4e-05]
[1742466072852,0.50268,84875.0,84866.0,0.00017672]
[1742466073054,0.3608,84867.0,84866.0,0.11808962]
[1742466073255,0.3608,84876.0,84875.0,0.1179004]
[1742466073454,0.3608,84900.0,84878.0,0.0589477]
[1742466073753,0.3608,84900.0,84898.0,0.1178685]
[1742466073754,0.05,84899.0,84898.0,0.1178685]
[1742466073954,0.33,84899.0,84898.0,0.1178685]
[1742466074453,0.33,84899.0,84894.0,0.1178733]
[1742466074657,0.3608,84895.0,84890.0,0.00017672]
[1742466074951,0.2178782,84891.0,84890.0,0.00017672]
[1742466075152,0.05,84880.0,84879.0,0.1178948]
[1742466075464,0.04,84893.0,84892.0,0.1178768]
[1742466075657,0.02,84893.0,84875.0,0.3608]
[1742466075961,0.02,84893.0,84885.0,0.0589432]
[1742466076149,0.02,84893.0,84892.0,0.1178768]
[1742466076349,0.00017672,84897.0,84896.0,0.1178712]
[1742466076749,2e-08,84897.0,84896.0,0.1178712]
[1742466076955,2e-08,84897.0,84896.0,0.4786712]
[1742466077154,0.3608,84901.0,84893.0,0.0505]
[1742466077354,0.05,84897.0,84873.0,0.0589452]
[1742466077550,0.05,84897.0,84866.0,0.19064]
[1742466077551,0.16,84897.0,84892.0,0.117865]
[1742466077749,0.16,84897.0,84896.0,0.1178595]
[1742466077750,0.05,84897.0,84896.0,0.1178595]
[1742466077943,0.3608,84901.0,84878.0,0.4687418]
[1742466077944,0.05,84900.0,84878.0,0.4098]
[1742466078258,0.3608,84894.0,84886.0,0.1178722]
[1742466078454,0.05,84887.0,84886.0,0.1178722]
[1742466078649,0.05,84895.0,84894.0,0.1178622]
[1742466078849,0.00017672,84903.0,84898.0,0.0589279]
[1742466079153,0.01017672,84903.0,84898.0,0.0589279]
[1742466079362,0.00017672,84903.0,84888.0,0.3608]
[1742466079548,0.1678516,84902.0,84891.0,0.1178655]
[1742466079752,0.1189257,84902.0,84888.0,0.3608]
[1742466079953,0.05,84899.0,84888.0,0.3608]
[1742466080149,0.19096,84898.0,84897.0,0.1178581]
[1742466080350,0.05,84898.0,84897.0,0.1178581]
[1742466080554,0.00017672,84903.0,84902.0,0.1178511]
[1742466080857,0.0093,84917.0,84902.0,0.1178511]
[1742466080858,0.10194422,84920.0,84906.0,0.0589221]
[1742466081047,0.10194422,84920.0,84902.0,0.1924]
[1742466081048,0.10194422,84920.0,84919.0,0.1178275]
[1742466081254,0.10194422,84920.0,84909.0,0.3608]
[1742466081255,0.35194422,84920.0,84909.0,0.3608]
[1742466081447,0.35194422,84920.0,84919.0,0.1178275]
[1742466081852,0.10194422,84920.0,84919.0,0.1178275]
[1742466082061,0.00017672,84928.0,84918.0,0.3608]
[1742466082263,0.00017672,84928.0,84918.0,0.0466]
[1742466082264,0.3608,84922.0,84918.0,0.0466]
[1742466082453,0.05,84919.0,84912.0,0.0466]
[1742466082651,0.0436,84918.0,84912.0,0.0466]
[1742466082853,0.05,84916.0,84912.0,0.0466]
[1742466083049,0.3608,84913.0,84912.0,0.1644372]
[1742466083360,0.3608,84932.0,84927.0,0.1178164]
[1742466083559,0.01017672,84928.0,84926.0,0.0492]
[1742466083861,0.01017672,84928.0,84911.0,0.00017672]
[1742466083862,0.11017672,84928.0,84911.0,0.00017672]
[1742466084164,0.01017672,84928.0,84924.0,0.1178206]
[1742466084364,0.01017672,84928.0,84927.0,0.1178164]
[1742466084552,0.00017672,84928.0,84927.0,0.1178164]
[1742466084864,0.00017672,84928.0,84927.0,0.1670164]
[1742466085261,0.13665541,84951.0,84940.0,0.0588992]
[1742466085471,0.13665541,84951.0,84950.0,0.1177845]
[1742466086263,0.19124,84979.0,84974.0,0.1177513]
[1742466086457,0.48956034,84975.0,84949.0,0.41]
[1742466086653,0.0001766,84959.0,84958.0,0.0482]
[1742466086852,0.0001766,84959.0,84958.0,0.1659734]
[1742466087763,0.60036034,84975.0,84974.0,0.1177513]
[1742466088265,0.3608,84995.0,84983.0,0.0588689]
[1742466088560,0.3608,84995.0,84976.0,0.5887411]
[1742466088561,0.15,85000.0,84999.0,0.1177166]
[1742466088766,0.5108,85000.0,84999.0,0.1177166]
[1742466088970,0.15,85000.0,84999.0,0.1177166]
[1742466089163,0.1,85000.0,84999.0,0.1177166]
[1742466089668,0.00010635,85008.0,85007.0,0.1177056]
[1742466089861,0.3608,85028.0,85019.0,0.1176889]
[1742466090059,0.24956034,85020.0,85019.0,0.1176889]
[1742466090366,0.23956034,85020.0,85019.0,0.1176889]
[1742466090664,0.23956034,85020.0,85019.0,0.4784889]
[1742466090866,0.30966538,85033.0,85021.0,0.0588426]
[1742466091167,0.30966538,85033.0,85010.0,0.0588503]
[1742466091168,0.3608,85023.0,85022.0,0.0498]
[1742466091462,0.3608,85023.0,85011.0,0.00017649]
[1742466091463,0.05,85012.0,85011.0,0.00017649]
[1742466091671,0.4208,85012.0,85011.0,0.00017649]
[1742466091867,0.4208,85012.0,85011.0,0.11787649]
[1742466092459,0.00060001,85025.0,85024.0,0.117682]
[1742466092668,0.3608,85032.0,85011.0,0.05902619]
[1742466092669,0.3608,85032.0,85015.0,0.0588467]
[1742466092967,0.05,85037.0,85034.0,0.0588335]
[1742466093167,0.05,85038.0,85037.0,0.117664]
[1742466093358,0.05,85038.0,85037.0,0.217064]
[1742466093559,0.36148,85044.0,85043.0,0.1176557]
[1742466093875,0.6008,85044.0,85043.0,0.1176557]
[1742466094070,0.24,85044.0,85043.0,0.1176557]
[1742466094367,0.4784439,85052.0,85041.0,0.1176573]
[1742466094566,0.0525,85051.0,85042.0,0.0494]
[1742466094773,0.0925,85051.0,85043.0,0.05]
[1742466094963,0.3608,85044.0,85043.0,0.1088272]
[1742466095158,0.01,85044.0,85043.0,0.2264829]
[1742466095362,0.3608,85061.0,85054.0,0.1176399]
[1742466095563,0.6208,85061.0,85056.0,0.1176374]
[1742466095768,0.6208,85061.0,85060.0,0.1176322]
[1742466096071,0.1176342,85059.0,85057.0,0.0512]
[1742466096374,0.0525,85058.0,85057.0,0.1176364]
[1742466096574,0.2925,85058.0,85057.0,0.1176364]
[1742466096870,0.2925,85058.0,85050.0,0.05899919]
[1742466096871,0.1176447,85051.0,85050.0,0.00017639]
[1742466097065,0.9084447,85051.0,85050.0,0.00017639]
[1742466097265,0.8841,85051.0,85034.0,0.051]
[1742466097467,0.05,85037.0,85036.0,0.1176654]
[1742466097666,0.3608,85039.0,85038.0,0.1176626]
[1742466097980,0.3608,85039.0,85036.0,0.0588323]
[1742466097981,0.3608,85051.0,85034.0,0.051]
[1742466098163,0.0182,85049.0,85037.0,0.0512]
[1742466098370,0.22306,85048.0,85047.0,0.1176502]
[1742466098570,0.56306,85048.0,85047.0,0.1176502]
[1742466098769,0.53126,85048.0,85047.0,0.1176502]
[1742466099170,0.29,85048.0,85047.0,0.1176502]
[1742466100068,0.05,85038.0,85023.0,0.3608]
[1742466100270,0.4784668,85035.0,85034.0,0.11784459]
[1742466100475,0.4108,85035.0,85034.0,0.11784459]
[1742466100673,0.4208,85035.0,85034.0,0.11784459]
[1742466101179,0.4208,85035.0,85034.0,0.16574459]
[1742466101471,0.4208,85035.0,85034.0,0.21504459]
[1742466101472,0.06,85035.0,85034.0,0.21504459]
[1742466101876,0.1776668,85035.0,85034.0,0.09737639]
[1742466102072,0.1776668,85035.0,85003.0,0.3608]
[1742466102073,0.2624,85035.0,85003.0,0.3608]
[1742466102276,0.3608,85016.0,85015.0,0.1176945]
[1742466102662,0.3608,85016.0,85013.0,0.1765459]
[1742466102663,0.1176986,85012.0,85011.0,0.0508]
[1742466102867,0.1176986,85012.0,85010.0,0.0509]
[1742466102868,0.0588552,85004.0,84996.0,0.1177202]
[1742466103064,0.3608,85000.0,84999.0,0.1177166]
[1742466103267,0.117718,84998.0,84997.0,0.0508]
[1742466103577,0.3608,85000.0,84999.0,0.1177145]
[1742466103782,0.3708,85000.0,84999.0,0.1177145]
[1742466104478,0.1177227,84993.0,84992.0,0.00017639]
[1742466104671,0.1177227,84993.0,84966.0,0.00072]
[1742466104672,0.1177297,84988.0,84986.0,0.1143]
[1742466104867,0.1177504,84973.0,84971.0,0.0588766]
[1742466105071,0.1177504,84973.0,84967.0,0.3608]
[1742466105072,0.058875,84974.0,84973.0,0.0566]
[1742466105274,0.04,84976.0,84973.0,0.0566]
[1742466105488,0.04,84976.0,84975.0,0.1177458]
[1742466105977,0.0549,84987.0,84975.0,0.1177458]
[1742466105978,0.3608,84990.0,84989.0,0.1177264]
[1742466106177,0.478525,84990.0,84989.0,0.1177264]
[1742466106378,0.0588609,84992.0,84987.0,0.174328]
[1742466106379,0.1177286,84988.0,84987.0,0.174328]
[1742466106683,0.1177286,84988.0,84987.0,0.0566]
[1742466106876,0.1577286,84988.0,84987.0,0.0566]
[1742466107775,0.04,84988.0,84987.0,0.1743215]
[1742466107975,0.05,84988.0,84987.0,0.1743215]
[1742466108273,0.85528001,84994.0,84993.0,0.1177132]
[1742466108576,0.3608,85010.0,84997.0,0.1177076]
[1742466108577,0.0582,85009.0,84997.0,0.1177076]
[1742466108770,0.0582,85009.0,84994.0,0.0548]
[1742466108972,0.1176936,85008.0,84997.0,0.1177076]
[1742466109167,0.0588526,84999.0,84997.0,0.1177076]
[1742466109372,0.11788269,84998.0,84997.0,0.1745076]
[1742466109580,0.11788269,84998.0,84997.0,0.1116]
[1742466110584,0.11788269,84998.0,84985.0,0.00017649]
[1742466110585,0.1177229,84986.0,84985.0,0.00017649]
[1742466111276,0.1177229,84986.0,84985.0,0.05377649]
[1742466111277,0.4234229,84986.0,84985.0,0.05377649]
[1742466111580,0.1177284,84982.0,84981.0,4e-05]
[1742466111774,0.1177437,84971.0,84970.0,4e-05]
[1742466111970,0.1177491,84976.0,84974.0,4e-05]
[1742466112172,0.0557,84975.0,84974.0,0.2298913]
[1742466112671,0.0588613,84995.0,84981.0,0.1177416]
[1742466112878,0.28978,84990.0,84986.0,0.1177325]
[1742466113071,0.28,84990.0,84988.0,0.1177304]
[1742466113272,1.26624,84991.0,84990.0,0.1177277]
[1742466113472,0.00017649,84994.0,84993.0,0.1177235]
[1742466114285,0.00017649,84994.0,84993.0,0.1177233]
[1742466114674,0.85476,85008.0,85007.0,0.1177056]
[1742466114976,0.1177319,84988.0,84987.0,0.3608]
[1742466115175,0.0588538,85006.0,84992.0,0.0584]
[1742466115377,0.1177249,84993.0,84992.0,0.0584]
[1742466115774,0.1177333,84987.0,84986.0,0.0566]
[1742466116082,0.1177291,84990.0,84989.0,0.1177277]
[1742466116476,0.0535,84992.0,84991.0,0.1177277]
[1742466116670,0.01,84992.0,84991.0,0.1177277]
[1742466116874,0.0588552,85004.0,84996.0,0.1177208]
[1742466117074,0.25017649,85001.0,85000.0,0.1177153]
[1742466117281,0.00017649,85001.0,85000.0,0.1177153]
[1742466117981,0.3608,85010.0,85008.0,0.1177028]
[1742466118185,0.4885024,85010.0,85009.0,0.1096]
[1742466118382,0.01,85010.0,85009.0,0.5880909]
[1742466118681,0.0588291,85033.0,85026.0,0.1176674]
[1742466118682,0.85484,85032.0,85026.0,0.1176674]
[1742466118981,0.05068,85032.0,85031.0,0.1176605]
[1742466119179,0.05,85032.0,85031.0,0.1176605]
[1742466119371,0.00017649,85035.0,85034.0,0.1176564]
[1742466120383,0.00017649,85035.0,85034.0,0.1752564]
[1742466120575,0.20493185,85050.0,85049.0,0.1176357]
[1742466120770,0.85472,85066.0,85062.0,0.1176177]
[1742466120982,0.00060001,85066.0,85062.0,0.1176177]
[1742466121585,0.27484727,85070.0,85029.0,0.3608]
[1742466121586,1.10721438,85063.0,85029.0,0.3608]
[1742466121787,0.1176315,85052.0,85051.0,0.0576]
[1742466122384,0.1176315,85053.0,85052.0,0.1176315]
[1742466122580,0.1176315,85052.0,85051.0,0.0576]
[1742466123580,0.0559,85061.0,85051.0,0.0576]
[1742466123879,0.23641438,85063.0,85058.0,0.0588111]
[1742466124080,0.24641438,85063.0,85060.0,0.0588102]
[1742466124282,0.1176177,85062.0,85061.0,0.0576]
[1742466124489,0.01,85062.0,85061.0,0.5360191]
[1742466124675,0.00017583,85071.0,85070.0,0.1176066]
[1742466125389,0.4194,85082.0,85070.0,0.1176066]
[1742466125390,0.3608,85082.0,85081.0,0.1175914]
[1742466125680,0.05,85082.0,85070.0,0.115]
[1742466125883,0.1176052,85071.0,85070.0,0.115]
[1742466126086,0.2376052,85071.0,85070.0,0.0576]
[1742466126381,0.12,85071.0,85070.0,0.0576]
[1742466126583,0.12,85071.0,85070.0,0.1752067]
[1742466126782,0.3608,85084.0,85083.0,0.1175887]
[1742466126983,0.4508,85084.0,85081.0,0.1175914]
[1742466127171,0.1175887,85083.0,85082.0,0.1112]
[1742466127376,0.1975887,85083.0,85082.0,0.1112]
[1742466128273,0.08,85083.0,85082.0,0.2287901]
[1742466128478,0.1975887,85083.0,85082.0,0.1112]
[1742466128678,0.2526887,85083.0,85082.0,0.1112]
[1742466129282,0.10060001,85100.0,85082.0,0.1112]
[1742466129483,0.27,85100.0,85099.0,0.4783666]
[1742466129975,0.1804,85120.0,85119.0,0.117539]
[1742466130181,0.2,85120.0,85116.0,0.3608]
[1742466130383,0.2,85120.0,85117.0,0.2248412]
[1742466130579,0.1175403,85118.0,85117.0,0.1073]
[1742466130790,0.5476203,85118.0,85117.0,0.0538]
[1742466130979,0.1175569,85106.0,85105.0,0.00017626]
[1742466131174,0.01,85106.0,85105.0,0.00017626]
[1742466131376,0.1275569,85106.0,85105.0,0.00017626]
[1742466131677,0.01,85106.0,85105.0,0.11773456]
[1742466131884,0.0565,85120.0,85119.0,0.1175389]
[1742466132087,0.14,85120.0,85119.0,0.1175389]
[1742466132386,0.0552,85121.0,85120.0,0.1175375]
[1742466132586,0.32484727,85138.0,85137.0,0.1175141]
[1742466132789,0.35484727,85138.0,85137.0,0.1175141]
[1742466133289,0.52756077,85138.0,85136.0,0.0537]
[1742466133496,0.1352,85138.0,85136.0,0.0537]
[1742466133791,0.117519,85134.0,85129.0,0.00017626]
[1742466134090,0.0552,85133.0,85129.0,0.00017626]
[1742466134279,0.2303,85133.0,85129.0,0.00017626]
[1742466134483,0.2303,85133.0,85130.0,0.1175226]
[1742466134685,0.1175238,85130.0,85129.0,0.00017626]
[1742466134881,0.3975238,85130.0,85129.0,0.00017626]
[1742466135082,0.28,85130.0,85129.0,0.00017626]
[1742466135282,0.3975238,85130.0,85129.0,0.00017626]
[1742466135587,0.28,85130.0,85129.0,0.00017626]
[1742466135784,0.28,85130.0,85129.0,0.11770136]
[1742466135785,0.40888,85130.0,85129.0,0.11770136]
[1742466136089,0.23,85130.0,85129.0,0.11770136]
[1742466136283,0.3475237,85130.0,85129.0,0.00017626]
[1742466136479,0.3475237,85130.0,85129.0,0.11770136]
[1742466136684,0.3475237,85130.0,85129.0,0.00017626]
[1742466136988,0.2864,85130.0,85129.0,0.11770136]
[1742466137380,0.2864,85130.0,85129.0,0.17250136]
[1742466138288,0.2864,85130.0,85129.0,0.00017626]
[1742466138491,0.814733,85130.0,85129.0,0.00017626]
[1742466138997,0.814733,85130.0,85129.0,0.11771066]
[1742466139190,0.814733,85130.0,85129.0,0.00017626]
[1742466139691,0.453933,85130.0,85129.0,0.11771046]
[1742466139897,0.453933,85130.0,85129.0,0.00017626]
[1742466140094,0.1175642,85107.0,85097.0,4e-05]
[1742466140289,0.1175767,85098.0,85097.0,4e-05]
[1742466140489,0.27,85098.0,85097.0,4e-05]
[1742466140991,0.85444,85105.0,85104.0,0.1175678]
[1742466140992,0.00068,85105.0,85104.0,0.1175678]
[1742466141181,0.1,85105.0,85103.0,0.0535]
[1742466141383,0.0548,85104.0,85103.0,0.1710692]
[1742466141589,0.00017586,85113.0,85103.0,0.0535]
[1742466141787,0.1175678,85104.0,85103.0,0.0535]
[1742466142083,0.01,85104.0,85103.0,0.171069]
[1742466142898,0.1275676,85104.0,85103.0,0.0535]
[1742466143288,0.01,85104.0,85103.0,0.1710688]
[1742466143688,0.01,85104.0,85103.0,0.0535]
[1742466144093,0.0648,85104.0,85103.0,0.1710683]
[1742466144498,0.01,85104.0,85103.0,0.1710683]
[1742466144689,0.01,85104.0,85103.0,0.5318683]
[1742466144889,0.17648,85117.0,85112.0,0.1175559]
[1742466145194,0.01017586,85113.0,85112.0,0.4783559]
[1742466145589,0.12773396,85113.0,85112.0,0.4783559]
[1742466145792,0.12773396,85113.0,85112.0,0.3608]
[1742466146793,0.01017586,85113.0,85112.0,0.3608]
[1742466147000,0.12773376,85113.0,85112.0,0.3608]
[1742466147198,0.1175687,85105.0,85104.0,0.0555]
[1742466147396,0.1275687,85105.0,85104.0,0.0555]
[1742466147701,0.1275687,85105.0,85104.0,0.1730701]
[1742466147702,0.01,85105.0,85104.0,0.1730701]
[1742466148098,0.00017586,85113.0,85112.0,0.117559]
[1742466148398,0.00017586,85113.0,85112.0,0.478359]
[1742466148986,0.0542,85127.0,85126.0,0.117541]
[1742466149187,0.01,85127.0,85126.0,0.117541]
[1742466150791,0.01,85127.0,85126.0,0.478341]
[1742466150991,0.01,85127.0,85126.0,0.533041]
[1742466151187,0.87368,85140.0,85138.0,0.1175245]
[1742466151392,1.09368,85140.0,85139.0,0.0547]
[1742466152098,1.09368,85140.0,85126.0,0.3608]
[1742466152099,0.1175396,85127.0,85126.0,0.3608]
[1742466152294,0.1375396,85127.0,85126.0,0.0573]
[1742466152689,0.1952396,85127.0,85126.0,0.0573]
[1742466153090,0.1952396,85127.0,85126.0,0.112]
[1742466153602,0.1952396,85127.0,85126.0,0.0573]
[1742466154303,0.1952396,85127.0,85125.0,4e-05]
[1742466154304,0.117541,85126.0,85125.0,4e-05]
[1742466154505,0.1175507,85119.0,85118.0,0.00017626]
[1742466154705,0.8083507,85119.0,85118.0,0.00017626]
[1742466155700,0.0587804,85112.0,85093.0,0.0547]
[1742466155903,0.1175686,85106.0,85105.0,0.4141]
[1742466156102,0.1975686,85106.0,85105.0,0.4141]
[1742466156404,0.2475686,85106.0,85105.0,0.3608]
[1742466156595,0.08,85106.0,85105.0,0.47837]
[1742466156902,0.2534,85106.0,85105.0,0.47837]
[1742466157103,0.3707686,85106.0,85105.0,0.47837]
[1742466157300,0.3707686,85106.0,85105.0,0.58767]
[1742466157501,0.2532,85106.0,85105.0,0.58767]
[1742466157808,0.3707686,85106.0,85105.0,0.58767]
[1742466157993,0.3707686,85106.0,85105.0,0.3608]
[1742466158201,0.08,85106.0,85105.0,0.4143]
[1742466158399,0.08,85106.0,85105.0,0.5318696]
[1742466158602,0.08,85106.0,85105.0,0.5876696]
[1742466159698,0.08,85106.0,85105.0,0.4701]
[1742466159899,0.1975675,85106.0,85105.0,0.4701]
[1742466160906,0.1975675,85106.0,85105.0,0.4143]
[1742466161609,0.2475675,85106.0,85105.0,0.4143]
[1742466162212,0.3608,85152.0,85105.0,1.40118]
[1742466162404,0.0582,85151.0,85141.0,0.3608]
[1742466162602,0.18,85151.0,85142.0,0.0532]
[1742466162909,0.1175161,85143.0,85142.0,0.0532]
[1742466163103,0.1775161,85143.0,85142.0,0.0532]
[1742466164509,0.06,85143.0,85142.0,0.5315172]
[1742466164810,0.1775159,85143.0,85142.0,0.414]
[1742466166117,0.3495959,85143.0,85142.0,0.414]